bitfinex/quotes_SOLUSD_20241126
["timestamp","ask_amount","ask_price","bid_price","bid_amount"]
[1732660003971,5.15025184,231.55,231.44,8.62631698]
[1732660004178,3.21914391,231.54,231.46,8.62631698]
[1732660004375,8.62631698,231.54,231.46,8.62631698]
[1732660005781,5.15022709,231.58,231.5,8.62631698]
[1732660006091,8.62631698,231.59,231.5,8.62631698]
[1732660006296,5.15030032,231.63,231.53,7.8976]
[1732660006470,3.21859665,231.62,231.54,8.62631698]
[1732660006668,3.21859665,231.61,231.54,8.62631698]
[1732660006869,8.62631698,231.62,231.54,8.62631698]
[1732660007087,6.65971989,231.68,231.58,8.62631698]
[1732660007088,5.15030032,231.68,231.58,8.62631698]
[1732660007401,6.19452139,231.73,231.58,8.62631698]
[1732660007402,3.21787994,231.67,231.58,8.62631698]
[1732660007575,8.62631698,231.65,231.59,18.6093]
[1732660007773,8.62631698,231.67,231.6,4.3177]
[1732660007971,8.62631698,231.61,231.57,113.86465824]
[1732660008179,8.62631698,231.63,231.57,113.86465824]
[1732660009184,8.62631698,231.63,231.58,4.3181]
[1732660010785,8.62631698,231.61,231.58,4.3181]
[1732660011419,8.62631698,231.61,231.55,4.3187]
[1732660011602,1.295,231.66,231.55,4.3187]
[1732660011775,8.62631698,231.64,231.55,12.94501698]
[1732660012180,8.62631698,231.64,231.55,23.74181698]
[1732660012391,5.14219706,231.68,231.57,8.62631698]
[1732660012596,5.14219706,231.7,231.57,8.62631698]
[1732660012900,8.62631698,231.67,231.57,8.62631698]
[1732660013300,8.62631698,231.67,231.58,4.3181]
[1732660015289,8.62631698,231.67,231.59,8.62631698]
[1732660015885,8.62631698,231.67,231.58,15.1135]
[1732660016078,8.62631698,231.67,231.59,8.62631698]
[1732660016607,8.62631698,231.69,231.61,28.62631698]
[1732660016981,8.62631698,231.71,231.63,16.08081698]
[1732660017304,8.62631698,231.71,231.64,4.317]
[1732660018584,10.35645527,231.83,231.65,8.62631698]
[1732660018785,8.62631698,231.77,231.69,8.62631698]
[1732660019003,5.12788225,231.81,231.69,8.62631698]
[1732660019202,8.62631698,231.77,231.69,8.62631698]
[1732660019393,8.62631698,231.77,231.7,4.3159]
[1732660020805,1.2942,231.8,231.7,4.3159]
[1732660021009,8.62631698,231.77,231.7,4.3159]
[1732660025487,20.0779,231.82,231.7,4.3159]
[1732660026004,8.62631698,231.78,231.7,4.3159]
[1732660026201,20.0779,231.82,231.7,4.3159]
[1732660026387,6.94039526,231.87,231.72,27.5068]
[1732660026388,5.0,231.87,231.72,27.5068]
[1732660026601,8.62631698,231.8,231.72,27.5068]
[1732660027224,10.10889707,231.87,231.72,27.5068]
[1732660027521,3.19155615,231.86,231.8,8.62631698]
[1732660027814,8.62631698,231.88,231.8,8.62631698]
[1732660029111,5.10560244,231.92,231.82,8.62631698]
[1732660029415,5.0,231.99,231.82,8.62631698]
[1732660029416,8.62631698,231.91,231.82,8.62631698]
[1732660029716,8.62631698,231.91,231.83,4.3135]
[1732660029901,1.2933,231.95,231.83,4.3135]
[1732660030101,8.62631698,231.92,231.83,4.3135]
[1732660031415,8.62631698,231.92,231.85,4.3131]
[1732660032300,8.62631698,231.93,231.85,4.3131]
[1732660034223,1.2931,231.99,231.86,122.49097522]
[1732660034392,8.62631698,231.95,231.86,122.49097522]
[1732660034893,1.2931,232.0,231.88,8.62631698]
[1732660035094,8.62631698,231.97,231.88,8.62631698]
[1732660035516,8.62631698,231.97,231.91,19.4432]
[1732660036710,8.62631698,231.97,231.91,23.755]
[1732660037415,1.8122625,232.03,231.91,23.755]
[1732660037617,8.62631698,231.99,231.91,23.755]
[1732660038131,8.62631698,232.01,231.92,8.62631698]
[1732660038712,8.62631698,231.99,231.91,23.755]
[1732660040106,8.62631698,231.97,231.91,137.61965824]
[1732660041460,8.62631698,231.97,231.91,133.30785824]
[1732660041736,8.62631698,231.95,231.91,19.4432]
[1732660042032,8.62631698,231.97,231.91,19.4432]
[1732660042206,8.62631698,231.97,231.91,23.7551]
[1732660043329,8.62631698,231.97,231.91,19.4432]
[1732660044010,1.293,232.01,231.91,23.7551]
[1732660044217,1.293,232.01,231.91,23.7552]
[1732660044218,8.62631698,231.95,231.91,23.7552]
[1732660044438,8.62631698,231.97,231.91,23.7552]
[1732660044612,1.2929,232.02,231.91,19.4432]
[1732660044810,8.62631698,231.97,231.91,23.755]
[1732660045010,8.62631698,231.97,231.91,19.4432]
[1732660045932,8.62631698,231.97,231.91,18.36375268]
[1732660051143,8.62631698,231.97,231.91,22.67575268]
[1732660051524,8.62631698,231.97,231.91,18.36375268]
[1732660054338,8.62631698,231.97,231.9,12.3757]
[1732660054339,8.62631698,231.95,231.9,8.0636]
[1732660055024,8.62631698,231.93,231.9,8.0636]
[1732660055546,8.62631698,231.93,231.85,26.9087]
[1732660055729,8.62631698,231.91,231.85,26.9087]
[1732660057644,8.62631698,231.91,231.82,8.62631698]
[1732660057645,8.62631698,231.89,231.82,4.3136]
[1732660057944,8.62631698,231.89,231.8,20.77151698]
[1732660058844,8.62631698,231.87,231.8,12.1452]
[1732660059451,8.62631698,231.87,231.8,7.8313]
[1732660060953,5.11487262,231.92,231.84,8.62631698]
[1732660061126,8.62631698,231.96,231.86,8.62631698]
[1732660061643,8.62631698,231.94,231.84,8.62631698]
[1732660061829,6.41098629,231.99,231.86,8.62631698]
[1732660062029,8.62631698,231.95,231.86,12.93921698]
[1732660062933,1.2933,231.96,231.88,8.62631698]
[1732660064538,5.12285279,232.01,231.93,8.62631698]
[1732660064730,9.14567948,232.03,231.93,8.62631698]
[1732660064925,3.20434803,232.02,231.95,8.62631698]
[1732660065148,0.5193625,232.03,231.95,8.62631698]
[1732660065450,3.72346253,232.03,231.97,8.62631698]
[1732660065755,0.5193625,232.03,231.97,8.62631698]
[1732660066136,0.5193625,232.03,231.99,8.62631698]
[1732660066453,0.5193625,232.03,231.99,13.39261643]
[1732660067157,0.5193625,232.03,231.97,13.39261643]
[1732660067363,3.72417776,232.03,231.95,13.39261643]
[1732660067656,0.5193625,232.03,231.95,13.39261643]
[1732660067854,3.72524473,232.03,231.95,13.39261643]
[1732660068654,3.72524473,232.03,231.92,113.86465824]
[1732660068956,3.72524473,232.03,231.95,33.39261643]
[1732660069951,3.22524473,232.03,231.96,4.311]
[1732660070346,13.39261643,232.02,231.94,4.3113]
[1732660070553,3.20588223,232.01,231.94,4.3113]
[1732660070859,13.39261643,232.02,231.94,4.3113]
[1732660071234,3.2129764,232.01,231.94,4.3113]
[1732660072065,13.39261643,232.02,231.95,13.39261643]
[1732660072227,3.21513038,232.01,231.95,13.39261643]
[1732660076146,3.21513038,232.0,231.95,17.70381643]
[1732660076350,13.39261643,232.02,231.95,17.70381643]
[1732660076544,3.21954713,232.01,231.95,17.70381643]
[1732660076751,3.21954713,232.0,231.95,17.70381643]
[1732660076956,1.3122625,232.03,231.95,17.70381643]
[1732660077132,3.21954517,232.02,231.95,17.70381643]
[1732660077333,3.21954517,232.01,231.95,17.70381643]
[1732660077533,3.21954517,232.0,231.95,17.70381643]
[1732660077733,3.21954517,231.99,231.95,17.70381643]
[1732660077953,6.46353687,232.03,231.95,17.70381643]
[1732660078151,3.22063516,232.02,231.95,17.70381643]
[1732660078333,3.22063516,232.01,231.95,17.70381643]
[1732660078539,3.22063516,232.0,231.95,17.70381643]
[1732660078861,3.22063516,231.99,231.95,17.70381643]
[1732660079058,6.46554483,232.03,231.95,17.70381643]
[1732660079253,3.22082131,232.02,231.95,17.70381643]
[1732660079450,3.22082131,232.01,231.95,17.70381643]
[1732660079660,3.22082131,232.0,231.95,17.70381643]
[1732660079961,6.46554483,232.03,231.95,17.70381643]
[1732660080168,3.22073879,232.02,231.95,17.70381643]
[1732660080345,3.22073879,232.01,231.95,17.70381643]
[1732660080663,3.22073879,232.0,231.95,17.70381643]
[1732660080835,6.46554483,232.03,231.95,17.70381643]
[1732660081039,3.22059663,232.02,231.95,17.70381643]
[1732660081260,3.22059663,232.01,231.95,17.70381643]
[1732660081476,3.22040236,232.0,231.95,17.70381643]
[1732660081769,13.39261643,232.02,231.93,17.70421643]
[1732660081943,3.22042733,232.01,231.93,17.70421643]
[1732660082153,3.22042733,232.0,231.93,17.70421643]
[1732660082344,13.39261643,232.02,231.93,17.70421643]
[1732660082542,3.22023932,232.01,231.93,17.70421643]
[1732660082751,3.22023932,232.0,231.93,17.70421643]
[1732660082956,3.22023932,231.99,231.93,17.70421643]
[1732660083281,5.15243705,232.01,231.93,17.70421643]
[1732660083476,3.22013411,232.0,231.93,17.70421643]
[1732660083655,3.22013411,231.99,231.93,17.70421643]
[1732660083987,0.0193625,232.03,231.95,13.39261643]
[1732660084188,3.22010944,232.02,231.95,127.25727467]
[1732660084480,3.22010944,232.01,231.95,127.25727467]
[1732660084773,5.1715376,232.03,231.95,127.25727467]
[1732660084976,3.21979262,232.02,231.95,127.25727467]
[1732660086059,3.21979262,232.02,231.96,4.311]
[1732660091987,8.5748753,232.01,231.94,4.3114]
[1732660092286,3.21979262,232.0,231.92,12.8864753]
[1732660092986,3.21979262,232.0,231.94,8.5748753]
[1732660093297,1.2929,232.02,231.94,12.8861753]
[1732660093587,3.21849345,232.01,231.94,12.8861753]
[1732660095575,3.21849345,232.0,231.94,12.8861753]
[1732660095770,9.8871378,232.03,231.94,12.8861753]
[1732660095771,3.21849345,232.02,231.94,4.3113]
[1732660095968,3.21834772,232.01,231.94,12.8861753]
[1732660096163,9.8871378,232.03,231.94,12.8861753]
[1732660096360,3.21829565,232.02,231.94,12.8861753]
[1732660096565,3.21829565,232.01,231.94,12.8861753]
[1732660096779,3.21829565,232.0,231.94,12.8861753]
[1732660096987,9.8871378,232.03,231.94,12.8861753]
[1732660097176,3.21832537,232.02,231.94,12.8861753]
[1732660097378,11.79320067,232.01,231.94,4.3113]
[1732660097563,3.21832537,232.0,231.94,4.3113]
[1732660099368,3.21832537,232.0,231.99,7.8675]
[1732660099588,0.0193625,232.03,231.99,7.8675]
[1732660099797,0.0193625,232.03,232.01,8.5748753]
[1732660100573,0.0193625,232.03,232.01,12.8849753]
[1732660102072,0.0193625,232.03,232.01,126.74963354]
[1732660103499,5.14803855,232.16,232.04,20.0]
[1732660103700,8.36622443,232.15,232.09,8.5748753]
[1732660103901,3.21818588,232.14,232.09,8.5748753]
[1732660104081,3.21818588,232.13,232.09,8.5748753]
[1732660104281,8.36622443,232.12,232.09,8.5748753]
[1732660104495,3.21818588,232.11,232.09,8.5748753]
[1732660104792,3.21818588,232.1,232.09,8.5748753]
[1732660105196,3.21818588,232.11,232.09,8.5748753]
[1732660105397,3.21818588,232.1,232.09,12.8834753]
[1732660105594,8.36622443,232.15,232.09,12.8834753]
[1732660105775,8.36622443,232.14,232.09,12.8834753]
[1732660105970,3.21818588,232.13,232.09,12.8834753]
[1732660106173,3.21818588,232.12,232.09,12.8834753]
[1732660106595,3.21818588,232.11,232.09,12.8834753]
[1732660106793,5.14803855,232.16,232.09,12.8834753]
[1732660107105,8.36764286,232.15,232.11,8.5748753]
[1732660107390,3.21960431,232.14,232.11,8.5748753]
[1732660107594,3.21960431,232.13,232.11,122.43953354]
[1732660107792,3.21960431,232.12,232.11,122.43953354]
[1732660107983,3.21960431,232.16,232.11,122.43953354]
[1732660108183,3.21960431,232.15,232.11,122.43953354]
[1732660108372,3.21960431,232.14,232.11,122.43953354]
[1732660108577,3.21960431,232.13,232.11,113.86465824]
[1732660108786,3.21960431,232.12,232.11,113.86465824]
[1732660109080,3.21960431,232.16,232.11,113.86465824]
[1732660109385,3.21960431,232.15,232.11,118.17275824]
[1732660109577,3.21960431,232.14,232.11,118.17275824]
[1732660109799,3.21960431,232.13,232.11,118.17275824]
[1732660110097,13.72409446,232.18,232.11,118.17275824]
[1732660110398,3.21828219,232.17,232.11,118.17275824]
[1732660110696,3.21828219,232.16,232.12,8.5748753]
[1732660110995,3.21828219,232.15,232.12,8.5748753]
[1732660111399,3.21828219,232.14,232.11,118.17275824]
[1732660111697,11.79315749,232.18,232.11,122.43953354]
[1732660111995,3.21601854,232.17,232.11,122.43953354]
[1732660112180,3.21601854,232.16,232.11,122.43953354]
[1732660112480,8.5748753,232.18,232.11,122.43953354]
[1732660113082,8.5748753,232.18,232.11,8.5748753]
[1732660117397,8.5748753,232.18,232.11,12.8830753]
[1732660119290,23.776884,232.22,232.13,8.5748753]
[1732660119594,8.5748753,232.21,232.13,8.5748753]
[1732660120404,8.5748753,232.21,232.13,12.8826753]
[1732660120708,9.8667753,232.21,232.13,12.8826753]
[1732660120899,9.8667753,232.21,232.13,4.3078]
[1732660121295,0.5193625,232.26,232.16,8.5748753]
[1732660121596,8.5748753,232.25,232.16,122.43953354]
[1732660121998,1.8109625,232.26,232.16,122.43953354]
[1732660121999,8.5748753,232.23,232.16,122.43953354]
[1732660122180,8.5748753,232.23,232.16,126.74683354]
[1732660123382,8.5748753,232.25,232.16,126.74683354]
[1732660124195,8.5748753,232.23,232.16,118.17195824]
[1732660125108,8.5748753,232.23,232.16,4.3073]
[1732660125589,8.5748753,232.23,232.15,4.3075]
[1732660127105,1.2917,232.25,232.16,20.4358753]
[1732660127307,8.5748753,232.24,232.16,20.4358753]
[1732660127822,8.5748753,232.23,232.16,11.861]
[1732660128122,8.5748753,232.23,232.16,149.361]
[1732660128715,24.2962465,232.26,232.16,145.0537]
[1732660128914,8.5748753,232.22,232.16,145.0537]
[1732660131102,8.5748753,232.22,232.16,7.5537]
[1732660134296,9.8666753,232.22,232.16,7.5537]
[1732660135797,8.5748753,232.22,232.16,7.5537]
[1732660136201,8.5748753,232.22,232.14,146.0748753]
[1732660136496,8.5748753,232.2,232.12,12.8827753]
[1732660137214,8.5748753,232.2,232.11,7.5537]
[1732660137411,8.5748753,232.2,232.11,11.8619]
[1732660137808,1.292,232.19,232.11,7.5537]
[1732660139707,1.292,232.19,232.11,16.1285753]
[1732660139909,1.292,232.19,232.11,20.4367753]
[1732660141809,3.2293,232.25,232.11,20.4367753]
[1732660142012,8.5748753,232.19,232.11,20.4367753]
[1732660142199,8.5748753,232.19,232.11,16.1285753]
[1732660144112,23.776884,232.22,232.13,8.5748753]
[1732660144315,25.068684,232.22,232.13,8.5748753]
[1732660144620,8.5748753,232.21,232.13,8.5748753]
[1732660145000,23.776884,232.2,232.11,7.5537]
[1732660145200,8.5748753,232.19,232.11,16.1285753]
[1732660146399,32.3517593,232.2,232.11,7.5537]
[1732660146596,32.3517593,232.2,232.12,8.5748753]
[1732660148403,33.6437593,232.2,232.12,8.5748753]
[1732660151813,3.22159456,232.19,232.12,8.5748753]
[1732660152324,32.3517593,232.2,232.12,8.5748753]
[1732660152531,3.22218845,232.19,232.12,12.8829753]
[1732660155114,3.22218845,232.19,232.14,8.5748753]
[1732660155327,8.5748753,232.24,232.16,8.5748753]
[1732660155718,3.22390219,232.23,232.16,8.5748753]
[1732660155915,3.22390219,232.22,232.16,8.5748753]
[1732660156226,8.5748753,232.24,232.16,8.5748753]
[1732660156425,3.2243671,232.23,232.16,8.5748753]
[1732660156621,3.2243671,232.22,232.16,8.5748753]
[1732660156819,8.5748753,232.24,232.16,8.5748753]
[1732660157020,3.22425294,232.23,232.16,8.5748753]
[1732660157427,3.22425294,232.23,232.17,4.3071]
[1732660158243,3.22425294,232.22,232.17,4.3071]
[1732660158443,8.5748753,232.24,232.17,4.3071]
[1732660158743,3.22507634,232.23,232.17,4.3071]
[1732660158945,3.225077,232.22,232.17,4.3071]
[1732660159241,8.5748753,232.24,232.17,4.3071]
[1732660159442,3.22519549,232.23,232.17,4.3071]
[1732660162329,3.22519549,232.22,232.18,27.6161]
[1732660162532,8.5748753,232.24,232.18,27.6161]
[1732660162824,3.22567331,232.23,232.18,27.6161]
[1732660163027,8.5748753,232.25,232.18,27.6161]
[1732660163444,3.22561894,232.24,232.18,27.6161]
[1732660163630,3.22561894,232.23,232.18,27.6161]
[1732660163827,8.5748753,232.25,232.18,31.9229]
[1732660164039,3.22574213,232.24,232.18,31.9229]
[1732660164237,3.22574213,232.23,232.18,31.9229]
[1732660164430,8.5748753,232.25,232.18,31.9229]
[1732660164634,3.22591397,232.24,232.18,31.9229]
[1732660164828,3.22591397,232.23,232.18,31.9229]
[1732660165032,8.5748753,232.25,232.18,31.9229]
[1732660165222,3.22592132,232.24,232.18,31.9229]
[1732660165425,3.22592132,232.23,232.18,31.9229]
[1732660165634,8.5748753,232.25,232.18,31.9229]
[1732660165949,3.22594434,232.24,232.18,30.84345268]
[1732660166148,3.22594434,232.23,232.18,30.84345268]
[1732660166345,8.5748753,232.25,232.18,30.84345268]
[1732660166645,3.22596811,232.24,232.18,30.84345268]
[1732660166954,3.22596811,232.23,232.18,30.84345268]
[1732660167129,8.5748753,232.23,232.18,30.84345268]
[1732660167332,3.22594957,232.22,232.18,30.84345268]
[1732660167842,8.5748753,232.23,232.18,30.84345268]
[1732660168827,25.5878465,232.26,232.18,30.84345268]
[1732660169054,8.5748753,232.23,232.18,30.84345268]
[1732660171536,25.5878465,232.26,232.18,30.84345268]
[1732660171537,8.5748753,232.21,232.18,26.53665268]
[1732660172042,8.5748753,232.22,232.18,26.53665268]
[1732660172240,8.5748753,232.23,232.18,26.53665268]
[1732660173034,3.22521441,232.22,232.18,26.53665268]
[1732660173234,8.5748753,232.23,232.18,26.53665268]
[1732660173448,3.2252204,232.21,232.18,26.53665268]
[1732660173634,3.2252204,232.2,232.18,26.53665268]
[1732660173838,5.16035264,232.22,232.18,26.53665268]
[1732660174152,3.22524173,232.21,232.18,26.53665268]
[1732660174355,5.16035264,232.23,232.18,26.53665268]
[1732660174557,3.22511232,232.22,232.18,26.53665268]
[1732660174732,3.22511232,232.21,232.18,26.53665268]
[1732660175060,26.72111549,232.42,232.26,26.4424]
[1732660175354,8.5748753,232.37,232.31,137.5]
[1732660175537,8.5748753,232.33,232.29,20.0]
[1732660175855,3.22369111,232.32,232.26,163.9424]
[1732660176050,8.5748753,232.33,232.26,163.9424]
[1732660176253,1.2904,232.48,232.35,20.0]
[1732660176579,8.5748753,232.43,232.35,20.0]
[1732660176752,8.5748753,232.41,232.35,20.0]
[1732660177130,8.5748753,232.41,232.34,4.3039]
[1732660177334,8.5748753,232.41,232.31,20.0]
[1732660177335,8.5748753,232.41,232.32,4.3042]
[1732660177663,8.5748753,232.37,232.29,4.3048]
[1732660178165,8.5748753,232.37,232.27,30.7475]
[1732660178456,23.776884,232.34,232.27,30.7475]
[1732660178833,23.776884,232.34,232.27,12.1295]
[1732660180755,23.776884,232.34,232.25,4.3056]
[1732660180756,8.5748753,232.33,232.25,4.3056]
[1732660181131,23.776884,232.34,232.23,4.3059]
[1732660181132,8.5748753,232.31,232.23,4.3059]
[1732660183435,8.5748753,232.31,232.24,12.8805753]
[1732660184343,23.776884,232.32,232.24,12.8805753]
[1732660184544,23.776884,232.32,232.25,8.5748753]
[1732660184740,23.776884,232.32,232.24,4.3057]
[1732660185051,23.776884,232.32,232.24,12.8805753]
[1732660187153,20.0,232.37,232.24,12.8805753]
[1732660187356,8.5748753,232.33,232.24,12.8805753]
[1732660188248,8.5748753,232.33,232.24,4.3057]
[1732660188448,8.5748753,232.33,232.24,12.8805753]
[1732660191458,23.776884,232.32,232.24,12.8805753]
[1732660192744,25.068184,232.32,232.22,168.2484]
[1732660192954,25.068184,232.32,232.23,8.5748753]
[1732660192955,8.5748753,232.31,232.23,8.5748753]
[1732660193157,23.776884,232.3,232.23,8.5748753]
[1732660194032,23.776884,232.3,232.23,12.8808753]
[1732660194443,25.068284,232.3,232.21,12.8810753]
[1732660195140,23.776884,232.3,232.21,12.8810753]
[1732660195465,8.5748753,232.29,232.21,24.3062]
[1732660195760,8.5748753,232.29,232.19,141.8066]
[1732660195761,23.776884,232.28,232.19,141.8066]
[1732660195950,23.776884,232.28,232.21,8.5748753]
[1732660196137,25.068384,232.28,232.21,8.5748753]
[1732660197472,25.068384,232.28,232.2,8.5748753]
[1732660198767,25.068384,232.28,232.2,12.8813753]
[1732660200341,25.068384,232.28,232.18,0.04087744]
[1732660200668,25.068384,232.28,232.17,163.9424]
[1732660200669,23.776884,232.26,232.17,141.8071]
[1732660200967,25.068384,232.28,232.12,4.3081]
[1732660200968,23.776884,232.23,232.12,4.3081]
[1732660201266,8.5748753,232.25,232.17,8.5748753]
[1732660202057,23.776884,232.24,232.14,20.0]
[1732660202253,23.776884,232.24,232.16,8.5748753]
[1732660202441,23.776884,232.24,232.12,15.0783]
[1732660202642,18.785,232.23,232.12,15.0783]
[1732660202874,18.785,232.23,232.16,8.5748753]
[1732660203261,18.785,232.23,232.12,4.3081]
[1732660203576,1.2914,232.3,232.21,8.5748753]
[1732660203749,8.5748753,232.29,232.21,8.5748753]
[1732660203951,8.5748753,232.27,232.13,164.3619]
[1732660204259,9.8664753,232.27,232.19,8.5748753]
[1732660204656,18.785,232.31,232.21,8.5748753]
[1732660204860,32.3517593,232.3,232.21,8.5748753]
[1732660205369,23.776884,232.3,232.23,8.5748753]
[1732660205957,23.776884,232.3,232.21,8.5748753]
[1732660206368,33.6431593,232.3,232.21,12.8811753]
[1732660209155,33.6431593,232.3,232.18,141.807]
[1732660209473,33.6431593,232.3,232.21,8.5748753]
[1732660210468,33.6431593,232.3,232.21,12.8811753]
[1732660212160,33.6431593,232.3,232.22,0.03054328]
[1732660213059,25.068284,232.3,232.22,0.03054328]
[1732660213254,33.6431593,232.3,232.22,0.03054328]
[1732660213477,9.8662753,232.3,232.22,0.03054328]
[1732660215062,9.8662753,232.3,232.21,12.8811753]
[1732660216178,1.2912,232.34,232.21,12.8811753]
[1732660216367,21.2912,232.34,232.25,8.5748753]
[1732660216672,8.5748753,232.34,232.25,8.5748753]
[1732660216880,1.2911,232.36,232.25,8.5748753]
[1732660217057,8.5748753,232.35,232.25,8.5748753]
[1732660217256,8.5748753,232.35,232.27,8.5748753]
[1732660217656,8.5748753,232.34,232.27,8.5748753]
[1732660218563,8.5748753,232.34,232.22,156.8307753]
[1732660218766,9.8659753,232.35,232.27,8.5748753]
[1732660220159,9.8659753,232.35,232.27,12.8801753]
[1732660220362,9.8659753,232.35,232.27,8.5748753]
[1732660221062,8.5748753,232.34,232.27,12.8800753]
[1732660221484,9.8659753,232.35,232.27,12.8800753]
[1732660222783,9.8659753,232.35,232.25,20.0]
[1732660222987,1.2911,232.35,232.26,8.5748753]
[1732660223283,8.5748753,232.34,232.26,8.5748753]
[1732660223892,8.5748753,232.34,232.26,12.8802753]
[1732660226077,8.5748753,232.34,232.26,4.3054]
[1732660226280,8.5748753,232.34,232.26,12.8802753]
[1732660227467,9.8660753,232.34,232.26,12.8802753]
[1732660227692,9.8660753,232.34,232.26,4.3054]
[1732660227982,8.5748753,232.32,232.26,4.3054]
[1732660230072,8.5748753,232.3,232.19,137.5]
[1732660230380,8.5748753,232.28,232.21,8.5748753]
[1732660231697,8.5748753,232.28,232.2,4.3066]
[1732660233491,8.5748753,232.26,232.2,4.3066]
[1732660234179,8.5748753,232.23,232.19,137.5]
[1732660234381,8.5748753,232.22,232.15,137.5]
[1732660234606,8.5748753,232.21,232.13,146.0748753]
[1732660235281,8.5748753,232.2,232.13,137.5]
[1732660235599,8.5748753,232.21,232.14,8.5748753]
[1732660236003,8.5748753,232.2,232.13,12.8827753]
[1732660236383,8.5748753,232.21,232.14,8.5748753]
[1732660236683,8.5748753,232.21,232.14,4.3077]
[1732660237210,9.8667753,232.21,232.13,8.5748753]
[1732660237406,8.5748753,232.18,232.1,150.3831753]
[1732660237577,8.5748753,232.17,232.1,150.3831753]
[1732660238597,20.0,232.23,232.12,8.5748753]
[1732660238795,4.5209,232.25,232.12,8.5748753]
[1732660238796,8.5748753,232.19,232.12,8.5748753]
[1732660239001,8.5748753,232.19,232.1,4.3083]
[1732660239192,8.5748753,232.18,232.1,12.8831753]
[1732660239399,8.5748753,232.19,232.11,8.5748753]
[1732660239709,9.8668753,232.19,232.11,8.5748753]
[1732660240587,26.2085753,232.19,232.11,8.5748753]
[1732660240787,8.5748753,232.17,232.09,8.5748753]
[1732660241281,23.776884,232.16,232.07,4.309]
[1732660241503,8.5748753,232.15,232.08,8.5748753]
[1732660241714,23.776884,232.14,232.06,8.5748753]
[1732660242020,8.5748753,232.13,232.06,8.5748753]
[1732660242508,8.5748753,232.12,232.05,12.8840753]
[1732660243596,8.5748753,232.11,232.04,137.5]
[1732660243795,8.5748753,232.1,232.04,137.5]
[1732660244388,8.5748753,232.11,232.04,146.0748753]
[1732660244587,8.5748753,232.11,232.04,141.8095]
[1732660244789,8.5748753,232.11,232.04,150.3843753]
[1732660245290,8.5748753,232.11,232.04,12.8843753]
[1732660245613,8.5748753,232.1,232.03,8.5748753]
[1732660246710,8.5748753,232.09,232.02,4.3098]
[1732660246898,8.5748753,232.09,232.02,24.3098]
[1732660247100,26.2090753,232.1,232.02,32.8846753]
[1732660247614,26.2090753,232.1,232.01,8.5748753]
[1732660248403,8.5748753,232.08,232.01,8.5748753]
[1732660248611,8.5748753,232.08,232.01,12.8849753]
[1732660248907,23.776884,232.07,231.99,137.5]
[1732660249118,23.776884,232.07,232.0,8.5748753]
[1732660249606,9.8674753,232.08,232.0,8.5748753]
[1732660253316,8.5748753,232.07,232.0,8.5748753]
[1732660253515,8.5748753,232.07,231.99,12.8853753]
[1732660253702,8.5748753,232.05,231.99,4.3105]
[1732660254794,1.2927,232.07,231.99,4.3105]
[1732660255115,8.5748753,232.05,231.99,4.3105]
[1732660255995,8.5748753,232.06,231.99,4.3105]
[1732660256197,1.2927,232.07,231.99,12.8853753]
[1732660256402,9.8675753,232.07,231.99,12.8853753]
[1732660257498,22.8959,232.1,231.99,12.8853753]
[1732660257799,8.5748753,232.06,231.99,12.8853753]
[1732660258011,8.5748753,232.06,231.99,4.3105]
[1732660258392,23.776884,232.08,231.99,12.8853753]
[1732660258597,8.5748753,232.06,231.99,12.8853753]
[1732660258999,16.3417,232.1,232.02,8.5748753]
[1732660259419,1.2924,232.12,232.04,8.5748753]
[1732660259614,8.5748753,232.13,232.04,8.5748753]
[1732660260297,16.3417,232.16,232.08,8.5748753]
[1732660260614,8.5748753,232.15,232.08,12.8835753]
[1732660261517,1.2921,232.17,232.1,8.5748753]
[1732660261518,8.5748753,232.17,232.1,8.5748753]
[1732660261896,1.2919,232.2,232.1,8.5748753]
[1732660262201,8.5748753,232.19,232.1,8.5748753]
[1732660262603,8.5748753,232.19,232.11,4.3083]
[1732660262800,8.5748753,232.21,232.12,8.5748753]
[1732660263008,8.5748753,232.21,232.14,8.5748753]
[1732660263402,1.2916,232.26,232.14,8.5748753]
[1732660263607,8.5748753,232.22,232.14,8.5748753]
[1732660264522,8.5748753,232.22,232.15,4.3075]
[1732660269118,8.5748753,232.2,232.15,4.3075]
[1732660269427,23.776884,232.25,232.13,4.3078]
[1732660269729,8.5748753,232.23,232.14,8.5748753]
[1732660270603,8.5748753,232.23,232.15,4.3075]
[1732660270820,8.5748753,232.21,232.15,4.3075]
[1732660271020,8.5748753,232.21,232.13,4.3077]
[1732660271514,8.5748753,232.19,232.13,4.3077]
[1732660274513,8.5748753,232.17,232.13,4.3077]
[1732660274913,8.5748753,232.17,232.12,137.5]
[1732660275130,8.5748753,232.15,232.1,4.3083]
[1732660276109,8.5748753,232.16,232.09,150.3834753]